lending/lending_fUSD_20260220
["ID","MTS","AMOUNT","RATE_DAILY","PERIOD"]
[406012693,1771546244202,-463.4906551,0.00013698,2]
[406012694,1771546244211,-500.0,0.00013698,2]
[406012695,1771546244221,-500.0,0.00013698,2]
[406012696,1771546244230,-500.0,0.00013698,2]
[406012697,1771546244239,-472.76753278,0.00013698,2]
[406012698,1771546244248,-500.0,0.00013698,2]
[406012699,1771546244257,-500.0,0.00013698,2]
[406012700,1771546244266,-500.0,0.00013698,2]
[406012701,1771546244275,-415.79283725,0.00013698,2]
[406012702,1771546244284,-500.0,0.00013698,2]
[406012703,1771546244294,-201.3506517,0.00013698,2]
[406012704,1771546244304,-151.0,0.00013698,2]
[406012705,1771546244313,-500.0,0.00013698,2]
[406012706,1771546244322,-500.0,0.00013698,2]
[406012707,1771546244566,-500.0,0.00013698,2]
[406012708,1771546244576,-500.0,0.00013698,2]
[406012709,1771546244585,-500.0,0.00013698,2]
[406012710,1771546244594,-500.0,0.00013698,2]
[406012711,1771546244603,-500.0,0.00013698,2]
[406012712,1771546244612,-500.0,0.00013698,2]
[406012713,1771546244621,-500.0,0.00013699,2]
[406012714,1771546244631,-1000.0,0.00013699,2]
[406012715,1771546244641,-200.0,0.00013699,2]
[406012716,1771546244652,-151.0,0.00013699,2]
[406012717,1771546244662,-151.0,0.00013699,2]
[406012718,1771546244671,-151.0,0.00013699,2]
[406012719,1771546244680,-151.0,0.00013699,2]
[406012720,1771546244690,-151.0,0.00013699,2]
[406012721,1771546244699,-351.981322,0.00013699,2]
[406012722,1771546244708,-351.981322,0.00013699,2]
[406012723,1771546244717,-351.981322,0.00013699,2]
[406012724,1771546244728,-351.981322,0.00013699,2]
[406012725,1771546244738,-351.981322,0.00013699,2]
[406012726,1771546244748,-351.981322,0.00013699,2]
[406012727,1771546244758,-351.981322,0.00013699,2]
[406012728,1771546244767,-351.981322,0.00013699,2]
[406012729,1771546244776,-351.981322,0.00013699,2]
[406012730,1771546244785,-351.981322,0.00013699,2]
[406012731,1771546244795,-351.981322,0.00013699,2]
[406012732,1771546244806,-351.981322,0.00013699,2]
[406012733,1771546244817,-351.981322,0.00013699,2]
[406012734,1771546244827,-351.981322,0.00013699,2]
[406012735,1771546244837,-351.981322,0.00013699,2]
[406012736,1771546244847,-351.981322,0.00013699,2]
[406012737,1771546244858,-690.640809,0.00013699,2]
[406012738,1771546244867,-690.640809,0.00013699,2]
[406012739,1771546244877,-690.640809,0.00013699,2]
[406012740,1771546244888,-690.640809,0.00013699,2]
[406012741,1771546244899,-690.640809,0.00013699,2]
[406012742,1771546244911,-690.640809,0.00013699,2]
[406012743,1771546244921,-690.640809,0.00013699,2]
[406012744,1771546244931,-690.640809,0.00013699,2]
[406012745,1771546244940,-690.640809,0.00013699,2]
[406012746,1771546244950,-690.640809,0.00013699,2]
[406012747,1771546244961,-690.640809,0.00013699,2]
[406012748,1771546244971,-690.640809,0.00013699,2]
[406012749,1771546244980,-690.640809,0.00013699,2]
[406012750,1771546244990,-690.640809,0.00013699,2]
[406012751,1771546244999,-690.640809,0.00013699,2]
[406012752,1771546245009,-690.640809,0.00013699,2]
[406012753,1771546245018,-200.0,0.00013699,2]
[406012754,1771546245027,-150.99,0.00013699,2]
[406012755,1771546245037,-151.0,0.00013699,2]
[406012756,1771546245046,-351.981322,0.00013699,2]
[406012757,1771546245056,-351.981322,0.00013699,2]
[406012758,1771546245065,-351.981322,0.00013699,2]
[406012759,1771546245075,-351.981316,0.00013699,2]
[406012760,1771546245084,-192.765694,0.00013699,2]
[406012761,1771546245093,-192.765694,0.00013699,2]
[406012762,1771546245102,-192.765694,0.00013699,2]
[406012763,1771546245111,-192.765697,0.00013699,2]
[406012764,1771546245120,-173.270731,0.00013699,2]
[406012765,1771546245130,-173.270731,0.00013699,2]
[406012766,1771546245142,-173.270731,0.00013699,2]
[406012767,1771546245152,-173.270735,0.00013699,2]
[406012768,1771546245162,-158.69956,0.00013699,2]
[406012769,1771546245171,-158.69956,0.00013699,2]
[406012770,1771546245181,-158.69956,0.00013699,2]
[406012771,1771546245191,-158.699551,0.00013699,2]
[406012772,1771546245200,-619.29,0.000137,2]
[406012773,1771546245209,-619.29,0.000137,2]
[406012774,1771546245220,-619.29,0.000137,2]
[406012775,1771546245229,-619.29,0.000137,2]
[406012776,1771546245238,-619.29,0.000137,2]
[406012777,1771546245248,-151.29271323,0.00013843,2]
[406012778,1771546245257,-168.0,0.00014065,2]
[406012779,1771546245267,-151.0,0.00014126,2]
[406012780,1771546245276,-168.0,0.00014129,2]
[406012781,1771546245286,-168.0,0.00014131,2]
[406012782,1771546245295,-168.0,0.00014138,2]
[406012783,1771546245304,-1000.0,0.00014212,2]
[406012784,1771546245313,-447.84,0.00014258,2]
[406012785,1771546245323,-1338.0,0.00014295,2]
[406012786,1771546245332,-617.0,0.00014295,2]
[406012787,1771546245342,-1039.0,0.00014295,2]
[406012788,1771546245352,-1209.0,0.00014295,2]
[406012789,1771546245362,-168.0,0.00014319,2]
[406012791,1771546245372,-168.0,0.00014326,2]
[406012792,1771546245383,-168.0,0.00014414,2]
[406012793,1771546245392,-168.0,0.0001451,2]
[406012794,1771546245402,-2130.29344,0.00014567,2]
[406012795,1771546245412,-2130.29344,0.00014567,2]
[406012796,1771546245421,-2130.29344,0.00014567,2]
[406012797,1771546245431,-2130.293438,0.00014567,2]
[406012798,1771546245441,-331.78,0.00014648,2]
[406012799,1771546245450,-173.66088786,0.00014667,2]
[406012800,1771546245460,-160.0,0.00014667,2]
[406012801,1771546245469,-1000.0,0.00014726,2]
[406012802,1771546245480,-168.0,0.00014759,2]
[406012803,1771546245489,-168.0,0.00014816,2]
[406012804,1771546245499,-168.0,0.000149,2]
[406012805,1771546245508,-500.0,0.00015,3]
[406012806,1771546245517,-500.0,0.00015,3]
[406012807,1771546245526,-484.37578879,0.00015,3]
[406012808,1771546245535,-250.0,0.00015,2]
[406012809,1771546245545,-690.640809,0.00015068,2]
[406012810,1771546245554,-690.640809,0.00015068,2]
[406012811,1771546245564,-690.640809,0.00015068,2]
[406012812,1771546245573,-690.64081,0.00015068,2]
[406012813,1771546245583,-505.40891,0.00015068,2]
[406012814,1771546245594,-505.40891,0.00015068,2]
[406012815,1771546245604,-505.40891,0.00015068,2]
[406012816,1771546245615,-505.408915,0.00015068,2]
[406012817,1771546245624,-253.818976,0.00015068,2]
[406012818,1771546245635,-253.818976,0.00015068,2]
[406012819,1771546245644,-253.818976,0.00015068,2]
[406012820,1771546245654,-253.818974,0.00015068,2]
[406012821,1771546245664,-151.0,0.00015068,2]
[406012822,1771546245673,-151.0,0.00015068,2]
[406012823,1771546245685,-1589.01224,0.00015068,2]
[406012824,1771546245695,-1589.01224,0.00015068,2]
[406012825,1771546245705,-1589.01224,0.00015068,2]
[406012826,1771546245715,-1589.01224,0.00015068,2]
[406012827,1771546245725,-1589.01224,0.00015068,2]
[406012828,1771546245737,-1589.01224,0.00015068,2]
[406012829,1771546245747,-1589.01224,0.00015068,2]
[406012830,1771546245758,-1589.01224,0.00015068,2]
[406012831,1771546245768,-1589.01224,0.00015068,2]
[406012832,1771546245777,-1589.01224,0.00015068,2]
[406012833,1771546245786,-1589.01224,0.00015068,2]
[406012834,1771546245796,-1589.01224,0.00015068,2]
[406012835,1771546245805,-1589.01224,0.00015068,2]
[406012836,1771546245814,-1589.01224,0.00015068,2]
[406012837,1771546245823,-1589.01224,0.00015068,2]
[406012838,1771546245836,-1589.01224,0.00015068,2]
[406012839,1771546245847,-1589.01224,0.00015068,2]
[406012840,1771546245857,-1589.01224,0.00015068,2]
[406012841,1771546245867,-1589.01224,0.00015068,2]
[406012842,1771546245877,-1589.012248,0.00015068,2]
[406012843,1771546245887,-168.0,0.00015073,2]
[406012844,1771546245898,-168.0,0.00015128,2]
[406012845,1771546245907,-168.0,0.00015151,2]
[406012846,1771546245917,-168.0,0.00015172,2]
[406012847,1771546245928,-168.0,0.00015237,2]
[406012848,1771546245939,-1000.0,0.0001524,2]
[406012849,1771546245948,-168.0,0.00015253,2]
[406012850,1771546245958,-168.0,0.00015382,2]
[406012851,1771546245967,-276.48038,0.00015538,7]
[406012852,1771546245978,-809.41322249,0.00015615,2]
[406012853,1771546245988,-46441.737698,0.00015616,7]
[406012854,1771546245997,-12196.841086,0.00015616,7]
[406012855,1771546246007,-150.0,0.00015619,2]
[406012856,1771546246016,-5709.86998879,0.00015646,2]
[406012857,1771546246026,-1000.0,0.00015753,2]
[406012858,1771546246036,-152.29,0.00015815,2]
[406012859,1771546246046,-151.29271323,0.00015872,2]
[406012860,1771546246056,-500.0,0.0001612,2]
[406012861,1771546246066,-500.0,0.00016199,2]
[406012862,1771546246076,-5000.00851616,0.000162,5]
[406012863,1771546246086,-151.0,0.000162,2]
[406012864,1771546246096,-838.3,0.00016438,2]
[406012866,1771546246105,-151.0,0.00016438,2]
[406012867,1771546246114,-151.0,0.00016438,2]
[406012869,1771546246124,-151.0,0.00016438,2]
[406012871,1771546246134,-162.016539,0.00016438,2]
[406012873,1771546246148,-527.172363,0.00016438,2]
[406012875,1771546246158,-527.172363,0.00016438,2]
[406012877,1771546246168,-527.172363,0.00016438,2]
[406012879,1771546246177,-527.172363,0.00016438,2]
[406012880,1771546246188,-527.172363,0.00016438,2]
[406012881,1771546246197,-527.172363,0.00016438,2]
[406012882,1771546246211,-527.172363,0.00016438,2]
[406012883,1771546246221,-527.172363,0.00016438,2]
[406012884,1771546246231,-527.172363,0.00016438,2]
[406012885,1771546246241,-527.172363,0.00016438,2]
[406012886,1771546246250,-527.172363,0.00016438,2]
[406012887,1771546246260,-527.172363,0.00016438,2]
[406012888,1771546246270,-527.172363,0.00016438,2]
[406012889,1771546246280,-527.172363,0.00016438,2]
[406012890,1771546246290,-527.172363,0.00016438,2]
[406012891,1771546246300,-527.172363,0.00016438,2]
[406012892,1771546246310,-527.172363,0.00016438,2]
[406012893,1771546246320,-527.172363,0.00016438,2]
[406012894,1771546246331,-527.172363,0.00016438,2]
[406012895,1771546246342,-527.17237,0.00016438,2]
[406012896,1771546246352,-300.0,0.00016438,3]
[406012897,1771546246362,-300.0,0.00016438,3]
[406012898,1771546246373,-300.0,0.00016438,3]
[406012899,1771546246383,-300.0,0.00016438,3]
[406012900,1771546246393,-300.0,0.00016438,3]
[406012901,1771546246402,-151.0,0.00016438,2]
[406012902,1771546246412,-151.0,0.00016438,2]
[406012903,1771546246422,-151.0,0.00016438,2]
[406012904,1771546246432,-151.0,0.00016438,2]
[406012905,1771546246442,-151.0,0.00016438,2]
[406012906,1771546246452,-151.0,0.00016438,2]
[406012907,1771546246462,-151.0,0.00016438,2]
[406012908,1771546246471,-151.0,0.00016438,2]
[406012909,1771546246481,-151.0,0.00016438,2]
[406012910,1771546246491,-151.0,0.00016438,2]
[406012911,1771546246500,-151.0,0.00016438,2]
[406012912,1771546246511,-151.0,0.00016438,2]
[406012913,1771546246521,-151.0,0.00016438,2]
[406012914,1771546246530,-151.0,0.00016438,2]
[406012915,1771546246540,-151.0,0.00016438,2]
[406012916,1771546246551,-151.0,0.00016438,2]
[406012917,1771546246561,-300.478171,0.00016438,2]
[406012918,1771546246576,-1091.041917,0.00016438,2]
[406012919,1771546246586,-1091.041917,0.00016438,2]
[406012920,1771546246597,-1091.041917,0.00016438,2]
[406012921,1771546246607,-1091.041917,0.00016438,2]
[406012922,1771546246618,-1091.041917,0.00016438,2]
[406012923,1771546246628,-1091.041917,0.00016438,2]
[406012924,1771546246638,-1091.041917,0.00016438,2]
[406012925,1771546246649,-1091.041917,0.00016438,2]
[406012926,1771546246658,-1091.041917,0.00016438,2]
[406012927,1771546246668,-1091.041917,0.00016438,2]
[406012928,1771546246678,-1091.041917,0.00016438,2]
[406012929,1771546246689,-1091.041917,0.00016438,2]
[406012930,1771546246700,-1091.041917,0.00016438,2]
[406012931,1771546246710,-1091.041917,0.00016438,2]
[406012932,1771546246720,-1091.041917,0.00016438,2]
[406012933,1771546246731,-1091.041917,0.00016438,2]
[406012934,1771546246741,-1091.041917,0.00016438,2]
[406012935,1771546246751,-1091.041917,0.00016438,2]
[406012936,1771546246766,-1091.041917,0.00016438,2]
[406012937,1771546246777,-1091.04192,0.00016438,2]
[406012938,1771546246788,-2453.0,0.0001663,2]
[406012939,1771546246798,-167.28,0.00016712,2]
[406012940,1771546246808,-5709.86998879,0.00016773,2]
[406012941,1771546246819,-162.46092801,0.00017,2]
[406012942,1771546246829,-500.0,0.00017,2]
[406012943,1771546246839,-205.31918377,0.00017,2]
[406012944,1771546246850,-500.0,0.00017,2]
[406012945,1771546246861,-186.21167167,0.00017,2]
[406012946,1771546246871,-170.25678754,0.00017,2]
[406012947,1771546246881,-160.0,0.00017,7]
[406012948,1771546246892,-152.31,0.00017065,2]
[406012949,1771546247082,-500.0,0.00017099,2]
[406012950,1771546247091,-500.0,0.00017099,2]
[406012951,1771546247103,-500.0,0.00017099,2]
[406012952,1771546247113,-500.0,0.00017099,2]
[406012953,1771546247122,-300.0,0.00017099,2]
[406012954,1771546247131,-300.0,0.00017099,2]
[406012955,1771546247141,-300.0,0.00017099,2]
[406012956,1771546247155,-300.0,0.00017099,2]
[406012957,1771546247164,-300.0,0.00017099,2]
[406012958,1771546247174,-300.0,0.00017099,2]
[406012959,1771546247183,-150.0,0.000171,2]
[406012960,1771546247193,-1489.66315196,0.000171,2]
[406012961,1771546247203,-150.0,0.000171,2]
[406012962,1771546247212,-528.19914244,0.000171,2]
[406012963,1771546247222,-211.80403907,0.000171,2]
[406012964,1771546247231,-51883.511202,0.000171,2]
[406012965,1771546247241,-1338.0,0.00017295,2]
[406012966,1771546247251,-330.629,0.00017295,2]
[406012967,1771546247261,-500.0,0.00017424,3]
[406012968,1771546247270,-173.66088786,0.000176,7]
[406012969,1771546247280,-15200.0,0.000176,6]
[406012970,1771546247289,-3000.0,0.000177,6]
[406012971,1771546247298,-19770.0,0.000178,2]
[406012972,1771546247308,-3000.0,0.000178,6]
[406012973,1771546247318,-150.0,0.00017808,2]
[406012974,1771546247328,-150.0,0.00017863,2]
[406012975,1771546247337,-5709.86998879,0.000179,2]
[406012976,1771546247347,-3000.0,0.000179,6]
[406012977,1771546247356,-151.29271323,0.000179,2]
[406012978,1771546247366,-347.03280364,0.000179,2]
[406012979,1771546247375,-4253.24349505,0.000179,2]
[406012981,1771546247384,-205.57529524,0.000179,3]
[406012983,1771546247394,-236.26020766,0.00017918,2]
[406012985,1771546247403,-181.85750958,0.0001799,2]
[406012987,1771546247413,-500.0,0.00017998,2]
[406012989,1771546247422,-300.0,0.00017998,2]
[406012991,1771546247431,-300.0,0.00017998,2]
[406012993,1771546247441,-300.0,0.00017998,2]
[406012995,1771546247450,-300.0,0.00017998,2]
[406012997,1771546247460,-300.0,0.00017998,2]
[406012998,1771546247469,-300.0,0.00017998,2]
[406012999,1771546247478,-100423.05310416,0.00017999,2]
[406013000,1771546247488,-500.0,0.00017999,2]
[406013001,1771546247497,-500.0,0.00017999,2]
[406013002,1771546247506,-500.0,0.00017999,2]
[406013003,1771546247515,-500.0,0.00017999,2]
[406013004,1771546247525,-237.0629335,0.00017999,2]
[406013005,1771546247534,-500.0,0.00017999,2]
[406013006,1771546247543,-500.0,0.00017999,2]
[406013007,1771546247552,-500.0,0.00017999,2]
[406013008,1771546247562,-500.0,0.00017999,2]
[406013009,1771546247572,-500.0,0.00017999,2]
[406013010,1771546247581,-500.0,0.00017999,2]
[406013011,1771546247591,-500.0,0.00017999,2]
[406013012,1771546247600,-500.0,0.00017999,2]
[406013013,1771546247609,-500.0,0.00017999,2]
[406013014,1771546247618,-500.0,0.00017999,2]
[406013015,1771546247628,-500.0,0.00017999,2]
[406013016,1771546247637,-500.0,0.00017999,2]
[406013017,1771546247647,-500.0,0.00017999,2]
[406013018,1771546247656,-500.0,0.00017999,2]
[406013019,1771546247665,-500.0,0.00017999,2]
[406013020,1771546247674,-500.0,0.00017999,2]
[406013021,1771546247683,-500.0,0.00017999,2]
[406013022,1771546247692,-500.0,0.00017999,2]
[406013023,1771546247702,-500.0,0.00017999,2]
[406013024,1771546247711,-500.0,0.00017999,2]
[406013025,1771546247719,-500.0,0.00017999,2]
[406013026,1771546247728,-550.6735607,0.00017999,2]
[406013027,1771546247737,-300.0,0.00017999,2]
[406013028,1771546247746,-300.0,0.00017999,2]
[406013029,1771546247755,-300.0,0.00017999,2]
[406013030,1771546247763,-500.0,0.00017999,2]
[406013031,1771546247772,-236.11508189,0.00017999,2]
[406013032,1771546247781,-309.17152157,0.00017999,2]
[406013033,1771546247790,-150.0,0.00017999,2]
[406013034,1771546247799,-239.69202374,0.00017999,2]
[406013035,1771546247809,-460320.93565022,0.00018,2]
[406013036,1771546247818,-109828.10698091,0.00018,2]
[406013037,1771546248768,-155.0,9.303e-05,2]
[406013038,1771546248779,-345.0,0.00018,2]
[406013039,1771546249114,-2185.89,7.925e-05,2]
[406013040,1771546249125,-176.04730941,0.0001,2]
[406013041,1771546249134,-817.92324614,0.00018,2]
[406013042,1771546249151,-512.6900035,0.00018,2]
[406013043,1771546249162,-2823.29,0.00018,2]
[406013044,1771546249174,-11476.73922581,0.00018,2]
[406013045,1771546249626,-948.26663092,0.00013361,2]
[406013046,1771546249635,-1851.73336908,0.00018,2]
[406013047,1771546249647,-23616.69961939,0.00018,2]
[406013048,1771546249656,-6614.80840451,0.00018,2]
[406013049,1771546249791,-98.31826513,0.00018,2]
[406013050,1771546249802,-350.625,0.00018,2]
[406013055,1771546523696,163.0,0.00017,30]
[406013089,1771547431718,-391.88,7.6e-05,2]
[406013090,1771547431729,-108.12,7.6e-05,2]
[406013091,1771547431739,-241.06,7.6e-05,2]
[406013092,1771547431750,-250.0,7.625e-05,2]
[406013093,1771547431761,-292.84,7.7e-05,2]
[406013094,1771547431770,-250.0,7.86e-05,2]
[406013095,1771547431781,-407.34127994,8.36e-05,2]
[406013096,1771547431790,-250.0,8.36e-05,2]
[406013097,1771547431800,-883.283,8.459e-05,2]
[406013098,1771547431810,-176.908,8.459e-05,2]
[406013099,1771547431819,-450.0,8.47e-05,2]
[406013100,1771547431829,-432.000595,9.018e-05,2]
[406013101,1771547431839,-1200.0,9.403e-05,2]
[406013102,1771547431849,-730.75277181,9.404e-05,2]
[406013103,1771547431859,-407.34127994,9.996e-05,2]
[406013104,1771547431869,-250.0,0.00010042,2]
[406013105,1771547431880,-1337.0,0.00010343,2]
[406013106,1771547431890,-300.0,0.00010891,2]
[406013107,1771547431899,-1591.11100679,0.00010892,2]
[406013108,1771547431908,-696.81665598,0.00010892,2]
[406013109,1771547431919,-150.0,0.00010892,2]
[406013110,1771547431928,-231.35520242,0.00010892,2]
[406013111,1771547431937,-2835.49566338,0.00010892,2]
[406013112,1771547431946,-477.34209353,0.00010892,2]
[406013113,1771547431955,-797725.07424998,0.00010893,2]
[406013114,1771547431966,-58374.16666892,0.00010893,2]
[406013115,1771547431977,-104820.50412637,0.00010893,2]
[406013116,1771547431989,-194596.59900369,0.00010893,2]
[406013117,1771547431999,-1254.41808677,0.00010893,2]
[406013118,1771547432254,-16809.27219528,0.00010893,2]
[406013119,1771547432266,-645.79236201,0.00010893,2]
[406013124,1771547439147,-170.45009811,0.00010892,2]
[406013125,1771547439157,-380.55862265,0.00010892,2]
[406013126,1771547439167,-570.86329967,0.00010892,2]
[406013127,1771547439176,-555.65392535,0.00010893,2]
[406013130,1771547439835,-500.0,0.00010892,2]
[406013131,1771547439844,-500.0,0.00010892,2]
[406013132,1771547439854,-500.0,0.00010892,2]
[406013133,1771547439866,-625.95457302,0.00010892,2]
[406013134,1771547439875,-500.0,0.00010892,2]
[406013135,1771547439885,-500.0,0.00010892,2]
[406013136,1771547439894,-513.59181175,0.00010892,2]
[406013137,1771547439904,-500.0,0.00010892,2]
[406013138,1771547439913,-500.0,0.00010892,2]
[406013139,1771547439923,-500.0,0.00010892,2]
[406013140,1771547439932,-500.0,0.00010892,2]
[406013141,1771547439941,-500.0,0.00010892,2]
[406013142,1771547439950,-460.95621029,0.00010892,2]
[406013143,1771547440053,-39.04378971,0.00010892,2]
[406013144,1771547440062,-333.07974777,0.00010892,2]
[406013145,1771547440074,-166.92025223,0.00010892,2]
[406013146,1771547440084,-500.0,0.00010892,2]
[406013147,1771547440095,-500.0,0.00010892,2]
[406013148,1771547440104,-500.0,0.00010892,2]
[406013149,1771547440114,-500.0,0.00010892,2]
[406013150,1771547440123,-1882.94474777,0.00010893,2]
[406013151,1771547440134,-892.03323758,0.00010893,2]
[406013152,1771547440145,-4708.8148369,0.00010893,2]
[406013153,1771547440176,-205722.12090964,0.00010893,2]
[406013190,1771547443639,-521.71363247,0.00010893,2]
[406013196,1771547444590,-424.07159074,0.00010893,2]
[406013197,1771547444601,-72209.20913979,0.00010893,2]
[406013198,1771547444614,-1176.29536712,0.00010893,2]
[406013207,1771547446085,-16244.64100497,0.00010893,2]
[406013209,1771547446096,-870.0,0.00010893,2]
[406013211,1771547446107,-3165.45,0.00010893,2]
[406013213,1771547446119,-666.0,0.00010893,2]
[406013218,1771547446149,-927.34473525,0.00010893,2]
[406013220,1771547446164,-354.70923108,0.00010893,2]
[406013222,1771547446175,-427.32439843,0.00010893,2]
[406013225,1771547446185,-523.49586585,0.00010893,2]
[406013227,1771547446196,-416.30793719,0.00010893,2]
[406013229,1771547446207,-686.69924265,0.00010893,2]
[406013231,1771547446217,-9241.54327382,0.00010893,2]
[406013233,1771547446227,-458.45174143,0.00010893,2]
[406013235,1771547446238,-328.00953762,0.00010893,2]
[406013330,1771548631915,-235.0,0.00010348,2]
[406013331,1771548631925,-276.48038,0.00010348,2]
[406013332,1771548631934,-250.0,0.00010386,2]
[406013333,1771548631943,-1457.0216599,0.000104,2]
[406013364,1771548637904,-1323.45921772,0.000104,2]
[406013366,1771548637916,-999.8506,0.000104,2]
[406013368,1771548637927,-1000.51193,0.000104,2]
[406013370,1771548637939,-3150.75,0.000104,2]
[406013371,1771548637960,-14087.60567993,0.000104,2]
[406013372,1771548637970,-1164.20361154,0.000104,2]
[406013373,1771548638016,-871.59133588,0.000104,2]
[406013374,1771548638027,-431.69598331,0.000104,2]
[406013375,1771548638068,-1550.56786155,0.000104,2]
[406013376,1771548639997,-619.33023489,0.000104,2]
[406013377,1771548640008,-276.871998,0.000104,2]
[406013378,1771548640019,-4353.0468707,0.000104,2]
[406013379,1771548640051,-1221.1636,0.000104,2]
[406013380,1771548640062,-11648.69454725,0.000104,2]
[406013381,1771548640106,-265.96,0.000104,2]
[406013382,1771548640315,-506.37642362,0.000104,2]
[406013383,1771548640481,-90138.42393929,0.000104,2]
[406013400,1771548644922,-373.27000001,0.000104,2]
[406013401,1771548645122,-3749.64626435,0.000104,2]
[406013402,1771548645139,-328.39178334,0.000104,2]
[406013403,1771548645159,-387.20067576,0.000104,2]
[406013404,1771548645172,-1075.23658347,0.000104,2]
[406013422,1771548645875,-27321.18890458,0.000104,2]
[406013423,1771548645888,-726.65367492,0.000104,2]
[406013424,1771548645980,-652.882568,0.000104,2]
[406013425,1771548645991,-1280.87624307,0.000104,2]
[406013426,1771548646003,-845.0,0.000104,2]
[406013427,1771548646035,-10531.05899916,0.000104,2]
[406013462,1771549831965,-1158.9,7.8e-05,2]
[406013464,1771549831975,-216.0,7.8e-05,2]
[406013466,1771549831984,-250.0,8.58e-05,2]
[406013467,1771549831993,-66.77677193,8.58e-05,2]
[406013469,1771549832073,-183.22322807,8.58e-05,2]
[406013470,1771549832083,-250.0,8.58e-05,2]
[406013471,1771549832092,-500.0,8.604e-05,2]
[406013472,1771549832101,-523.28246654,9.464e-05,2]
[406013473,1771549832110,-523.28246654,9.932e-05,2]
[406013474,1771549832120,-1269.825,0.00010094,2]
[406013475,1771549832129,-1200.0,0.00010198,2]
[406013476,1771549832138,-150.0,0.00010199,2]
[406013477,1771549832147,-1200.0,0.00010199,2]
[406013478,1771549832157,-6209.5003,0.000102,2]
[406013479,1771549832166,-1204.5236,0.000102,2]
[406013480,1771549832175,-1334.97578897,0.000102,2]
[406013481,1771549832185,-293.53015296,0.000102,2]
[406013482,1771549832214,-394.17718249,0.000102,2]
[406013486,1771549838493,-436.75223375,0.000102,2]
[406013489,1771549840642,-259.39905185,0.000102,2]
[406013490,1771549841179,-1209.29,0.000102,2]
[406013491,1771549841191,-269.4242826,0.000102,2]
[406013513,1771549843680,-392.91474974,0.000102,2]
[406013514,1771549843949,-2000.1049965,0.000102,2]
[406013515,1771549843962,-1000.0,0.000102,2]
[406013516,1771549844009,-562.39994,0.000102,2]
[406013517,1771549844021,-345.0,0.000102,2]
[406013554,1771550485824,-231.0,9.898e-05,2]
[406013555,1771550485846,-2500.0,9.9e-05,2]
[406013556,1771550485870,-120969.0,9.9e-05,2]
[406013557,1771550566609,375.0,4.539e-05,2]
[406013558,1771550588027,151.0,4.539e-05,3]
[406013559,1771550707146,156.0,4.539e-05,3]
[406013560,1771550750552,-150.0,0.00011764,12]
[406013561,1771550752206,-150.0,0.00011764,12]
[406013562,1771550753189,-150.0,0.00011764,12]
[406013563,1771550754230,-150.0,0.00011764,12]
[406013565,1771550766779,-1015.86,9.702e-05,2]
[406013566,1771550772870,-500.0,9.89e-05,2]
[406013567,1771550793260,-1200.0,9.8e-05,2]
[406013569,1771551010205,163.0,4.539e-05,3]
[406013581,1771551032281,-300.0,9.699e-05,2]
[406013582,1771551032290,-252.36162152,9.699e-05,2]
[406013589,1771551032398,-403.32000001,9.699e-05,2]
[406013590,1771551032512,-378.23771447,9.699e-05,2]
[406013596,1771551038549,-166.080664,9.699e-05,2]
[406013597,1771551038559,-300.0,9.699e-05,2]
[406013598,1771551038569,-230.0,9.699e-05,2]
[406013599,1771551038578,-390.7990753,9.7e-05,2]
[406013600,1771551038590,-1901.16870787,9.7e-05,2]